Cogmind - Beta 13 @@@ ROGUE MODE // 2024.04.01 @ 18:03:34 Player: Phosphophyllite Result: Destroyed by as-86552 with Assembled Blade Performance ------------- Evolutions (0) 0 Regions Visited (2) 400 Robots Destroyed (5) 25 Value Destroyed (80) 80 Prototype IDs (0) 0 Alien Tech Used (0) 0 Bonus (0) 0 TOTAL SCORE: 505 Bonus ------- None Cogmind --------- Core Integrity 0/250 Matter 233/300 Energy 100/100 System Corruption 3% Temperature Cool (0) Movement Core (200) Ox3 Location -10/Mines Parts ------- > --- POWER (1) -------- (None) > --- PROPULSION (2) --- (None) > --- UTILITY (2) ------ Medium Storage Unit Targeting Computer > --- WEAPON (2) ------- (None) > --- INVENTORY (10) --- Light Ion Engine Light Treads Aluminum Leg Compact Wheel Compact Wheel Small Storage Unit Peak State ------------ > --- POWER ------------ Ion Engine > --- PROPULSION ------- Aluminum Leg Aluminum Leg > --- UTILITY ---------- Medium Storage Unit Hacking Suite > --- WEAPON ----------- EM Pulse Gun Light Cannon > --- INVENTORY -------- Light Ion Engine Light Treads Compact Wheel Compact Wheel Small Storage Unit Assault Rifle Assault Rifle [Rating: 9] Favorites ----------- Power Ion Engine Engine Ion Engine Propulsion Aluminum Leg Treads Light Treads Leg Aluminum Leg Utility Medium Storage Unit Storage Medium Storage Unit Processor Targeting Computer Hackware Hacking Suite Weapon Light Cannon Energy Gun EM Pulse Gun Ballistic Gun Assault Rifle Ballistic Cannon Light Cannon Build | -11 -10 -10 ------- Run | Yrd Mat Min Slots Evolved . | . . . Power . | . . . Propulsion . | . . . Utility . | . . . Weapon . | . . . Parts Attached 20 | 6 11 3 Power 2 | 1 1 . Engine 2 | 1 1 . Core . | . . . Reactor . | . . . Propulsion 7 | 3 4 . Treads 3 | 1 2 . Leg 4 | 2 2 . Wheel . | . . . Hover . | . . . Flight . | . . . Utility 4 | 1 2 1 Device . | . . . Storage 2 | 1 1 . Processor 1 | . . 1 Hackware 1 | . 1 . Protection . | . . . Artifact . | . . . Weapon 7 | 1 4 2 Energy Gun 3 | 1 2 . Energy Cannon . | . . . Ballistic Gun 2 | . . 2 Ballistic Cannon 2 | . 2 . Launcher . | . . . Special Weapon . | . . . Impact Weapon . | . . . Slashing Weapon . | . . . Piercing Weapon . | . . . Special Melee Weapon . | . . . Unidentified Prototypes . | . . . Parts Lost 8 | . . 8 Power 1 | . . 1 Propulsion 2 | . . 2 Utility 1 | . . 1 Weapon 4 | . . 4 Highest Loss Streak 6 | . . 6 To Critical Strikes . | . . . Average Slot Usage (%) 73 | . 76 68 Engine 11 | . 12 9 Leg 19 | . 22 14 Storage 14 | . 14 14 Hackware 6 | . 5 7 Energy Gun 6 | . 9 1 Ballistic Gun 4 | . . 11 Ballistic Cannon 10 | . 10 9 Naked Turns . | . . . Heaviest Build 20 | 12 20 20 Greatest Support 40 | 20 40 20 Greatest Overweight (x) 6 | . 6 3 Average Overweight (x) . | . . . Largest Inventory Capacity 10 | 8 10 10 Average Capacity 9 | 6 9 10 Most Carried 10 | 7 10 8 Average Carried 7 | 5 8 6 Final Capacity 10 | 8 10 10 Final Carried 8 | 7 8 6 Class Distribution -------------------- 100% | Mutant Dominant Class ---------------- Mutant | -10/Materials Mutant | -10/Mines Resources | -11 -10 -10 ----------- Run | Yrd Mat Min Matter Collected 407 | 215 85 107 Remotely . | . . . Salvage Created 154 | . 43 111 Parts 9 | . 4 5 Haulers Intercepted . | . . . Recyclers Shooed . | . . . Parts Field Recycled . | . . . Retrieved Matter . | . . . Parts Self-Destructed . | . . . Prevented . | . . . Kills | -11 -10 -10 ------- Run | Yrd Mat Min Combat Hostiles Destroyed 11 | . 1 10 Guns 5 | . 1 4 Cannons 6 | . . 6 Classes Destroyed 4 | . 2 2 Operator 1 | . 1 . Swarmer 3 | . . 3 Grunt 1 | . 1 . Assembled 7 | . . 7 Best Kill Streak 7 | . 1 7 Combat Bots Only 7 | . 1 7 Max Kills in Single Turn 1 | . 1 1 Gunslinging . | . . . Exploded . | . . . Melee . | . . . Uniques/NPCs Destroyed . | . . . Combat | -11 -10 -10 -------- Run | Yrd Mat Min Hostile Shots Fired 88 | . 2 86 Missed 23 | . 1 22 Damage Taken 898 | . 10 888 Core 273 | . . 273 Absorbed by Shields . | . . . Core Remaining (%) 100 | 100 . . Volleys Fired 26 | . 3 23 Largest 2 | . 2 2 Hottest 75 | . 75 75 Shots Fired 41 | . 5 36 Gun 23 | . 2 21 Cannon 18 | . 3 15 Launcher . | . . . Special . | . . . Kinetic 36 | . 3 33 Thermal . | . . . Explosive . | . . . Electromagnetic 5 | . 2 3 Robot Hit Streak 5 | . 5 4 Robot Miss Streak 4 | . . 4 Penetration Max . | . . . Secondary Targets . | . . . Shots Hit Robots 24 | . 5 19 Core Hits 18 | . 3 15 Critical Kills 1 | . . 1 Critical Parts Destroyed . | . . . Critical Strikes 3 | . 1 2 Destroy 1 | . . 1 Blast 1 | . . 1 Corrupt 1 | . 1 . Melee Attacks . | . . . Impact . | . . . Slashing . | . . . Piercing . | . . . Sneak Attacks . | . . . Combat Hostiles . | . . . Follow-up Attacks . | . . . Damage Inflicted 414 | . 98 316 Guns 152 | . 28 124 Cannons 235 | . 49 186 Explosions 21 | . 21 . Melee . | . . . Ramming 6 | . . 6 Kinetic 349 | . 49 300 Thermal 21 | . 21 . Explosive . | . . . Electromagnetic 38 | . 28 10 Impact . | . . . Slashing . | . . . Piercing . | . . . Highest Corruption 3 | . . 3 Average Corruption 2 | . . 2 Corruption Purged . | . . . Corruption Blocked . | . . . Overload Shots . | . . . Overflow Damage 2 | . . 2 Projectiles 2 | . . 2 Explosions . | . . . Melee . | . . . Knockbacks 4 | . 1 3 Impact . | . . . Kinetic 4 | . 1 3 Secondary . | . . . Self-Inflicted Damage 2 | . . 2 Shots . | . . . Rammed 3 | . . 3 Targets Rammed 3 | . . 3 Kicked . | . . . Crushed . | . . . Highest Temperature 46 | . 36 46 Average Temperature 24 | . 22 25 Received Heat Transfer 106 | . 6 100 Siege Activations . | . . . Robots Corrupted . | . . . Combat Hostiles . | . . . Parts Fried . | . . . Impact Corruptions . | . . . Robots Melted . | . . . Combat Hostiles . | . . . Parts Melted . | . . . Heat Transferred 50 | . 50 . Parts Sabotaged . | . . . Parts Stolen . | . . . Parts Stripped . | . . . Power Chain Reactions 1 | . 1 . Alert | -11 -10 -10 ------- Run | Yrd Mat Min Peak Influence 74 | . 38 74 Initial 14 | . . 14 Average 16 | . 10 34 Maximum Alert Level . | . . . Low Security (%) 100 | 100 100 100 Level 1 . | . . . Level 2 . | . . . Level 3 . | . . . Level 4 . | . . . Level 5 . | . . . High Security . | . . . Max Security . | . . . Squads Dispatched 1 | . 1 . Investigation 1 | . 1 . Extermination . | . . . Reinforcement . | . . . Assault . | . . . Garrison . | . . . Intercept . | . . . Searches Triggered . | . . . Construction Impeded . | . . . Haulers Reinforced . | . . . Active Scanning Responses . | . . . Cargo Convoy Interrupts . | . . . Stealth | -11 -10 -10 --------- Run | Yrd Mat Min Distress Signals 1 | . 1 . Communications Jammed . | . . . Distress Signals . | . . . Times Spotted 26 | . 2 24 Peak Tracking Total 16 | . 1 16 Tactical Retreats 2 | . . 2 Traps | -11 -10 -10 ------- Run | Yrd Mat Min Traps Triggered 3 | . 3 . Indirectly . | . . . Trap Hack Attempts . | . . . Triggered . | . . . Disarmed . | . . . Reprogrammed . | . . . Reused . | . . . Traps Extracted . | . . . Installed . | . . . Triggered . | . . . Machines | -11 -10 -10 ---------- Run | Yrd Mat Min Machines Disabled . | . . . Max in Single Turn . | . . . Machines Repaired . | . . . Machines Dismantled . | . . . Machines Sabotaged . | . . . Overloaded Fab Kills . | . . . Hacking | -11 -10 -10 --------- Run | Yrd Mat Min Machines Accessed 1 | . 1 . Terminals 1 | . 1 . Fabricators . | . . . Repair Stations . | . . . Recycling Units . | . . . Scanalyzers . | . . . Garrison Access . | . . . Total Hacks 3 | . 3 . Successful 2 | . 2 . Failed 1 | . 1 . Catastrophic . | . . . Database Lockouts . | . . . Manual . | . . . Terminals 3 | . 3 . Fabricators . | . . . Repair Stations . | . . . Recycling Units . | . . . Scanalyzers . | . . . Garrison Access . | . . . Terminal Hacks 2 | . 2 . Record 2 | . 2 . Fabricator Hacks . | . . . Repair Station Hacks . | . . . Recycling Unit Hacks . | . . . Scanalyzer . | . . . Garrison Access Hacks . | . . . Unauthorized Hacks . | . . . Terminals . | . . . Fabricators . | . . . Repair Stations . | . . . Recycling Units . | . . . Scanalyzers . | . . . Garrison Access . | . . . Data Cores Recovered 1 | . 1 . Used 1 | . 1 . Hacking Detections 1 | . 1 . Full Trace Events 1 | . 1 . Feedback Events . | . . . Feedback Blocked . | . . . Robot Schematics Acquired . | . . . Robots Built . | . . . Authchips . | . . . Time . | . . . Total Robot Build Rating . | . . . Part Schematics Acquired . | . . . Parts Built . | . . . Authchips . | . . . Time . | . . . Total Part Build Rating . | . . . Parts Repaired . | . . . Time . | . . . Parts Recycled . | . . . Recycled Matter . | . . . Retrieved Matter . | . . . Retrieved Components . | . . . Parts Scanalyzed . | . . . Part Schematics Acquired . | . . . Parts Damaged . | . . . Bothacking | -11 -10 -10 ------------ Run | Yrd Mat Min Used RIF Installer . | . . . Robots Hacked . | . . . Non-combat . | . . . Combat . | . . . Robot Hacks Applied . | . . . Relay Couplers Released . | . . . Fabnet Peak Effective % . | . . . Robots Rewired . | . . . Allies Hacked . | . . . Hacks Repelled . | . . . Allies | -11 -10 -10 -------- Run | Yrd Mat Min Total Allies . | . . . Largest Group . | . . . Highest-Rated Group . | . . . Highest-Rated Ally . | . . . Total Orders . | . . . Ally Attacks . | . . . Total Damage . | . . . Kills . | . . . Allies Corrupted . | . . . Allies Melted . | . . . Intel | -11 -10 -10 ------- Run | Yrd Mat Min Robot Analysis Total . | . . . Derelict Logs Recovered . | . . . Drone Launches . | . . . Drone Recoveries . | . . . Exploration | -11 -10 -10 ------------- Run | Yrd Mat Min Turns Passed 388 | 60 200 128 Spaces Moved 214 | 41 131 42 Core 26 | 10 7 9 Treads 8 | 4 4 . Legs 180 | 27 120 33 Wheels . | . . . Hover . | . . . Flight . | . . . Fastest Speed 50 | 50 120 120 Average Speed 126 | 106 129 138 Slowest Speed 350 | 160 350 200 Overloaded Moves . | . . . Propulsion Burnouts . | . . . Robots Hopped . | . . . Cave-ins Triggered . | . . . Exploration Rate (%) 15 | 4 25 17 Regions Visited 2 Branch Regions 1 Pre-discovered Areas . | . . . Known Exits Taken . | . . . Unknown Exits Taken 2 | 1 1 . Scrap Searched . | . . . Spaces Dug . | . . . Terrain Destroyed 3 | . 3 . Melee . | . . . Projectile . | . . . AOE 3 | . 3 . Terrain Rammed . | . . . Walls Destroyed . | . . . Machines Disabled . | . . . Actions | -11 -10 -10 --------- Run | Yrd Mat Min Total 284 | 56 155 73 Wait 4 | . 3 1 Move 212 | 40 130 42 Hop . | . . . Pick Up 18 | 9 8 1 Fast Attach 6 | 3 3 . Attach 13 | 3 7 3 Detach 1 | 1 . . Swap 1 | . 1 . Drop . | . . . Fire 26 | . 3 23 Melee . | . . . Ram 3 | . . 3 Kick . | . . . Crush . | . . . Escape Stasis . | . . . Rewire . | . . . Trap . | . . . Miscellaneous . | . . . Route ------- -11/Scrapyard -10/Materials (discovered 2 exits: [*Mat] / [*Min]) -10/Mines History --------- Turn | Location | Event 13 | -11/Scrapyard | Discovered new exit (range 13) 61 | -11/Scrapyard | Entered Materials 237 | -10/Materials | Discovered new exit (range 15) 241 | -10/Materials | Discovered new exit (range 11) 261 | -10/Materials | Entered Mines 300 | -10/Mines | Build established: Mutant 307 | -10/Mines | Assembled infested the area 312 | -10/Mines | Assisted by a Guerilla fighting off Assembled 349 | -10/Mines | Core integrity fell below 50% 376 | -10/Mines | Lost 6 parts (1p2n1u2w) 381 | -10/Mines | Destroyed 7 combat bots 387 | -10/Mines | Core integrity fell below 20% 389 | -10/Mines | Destroyed by as-86552 with Assembled Blade Last Messages --------------- Assault Rifle destroyed. as-42640 knocked back. as-42640 destroyed. Ion Engine destroyed. as-28948 destroyed. Destroyed Asb. Hover Unit. Lgt. Cannon destroyed. as-12417 destroyed. as-20500 destroyed. Acquired 6 matter. Acquired 27 matter. Acquired 12 matter. K-01 Serf system corrupted by crushing effect. K-01 Serf knocked back. Acquired Targeting Computer. Acquired 27 matter. Assault Rifle destroyed. System corrupted by crushing effect (+2). Slammed into as-44151. Destabilizing: System corrupted (+1). Map ----- +----------------------------------------------------+ | ?????????????????????????????????????????????????? | | ?????????????????????????????????????????????????? | | ?????????????????????????????????????????????????? | | ?????????????????????????????????????????????????? | | ?????????????????????????????????????????????????? | | ?????????????????????????????????????????????????? | | ?????????????????????????????????????????????????? | | ?????????????????????????????????????????????????? | | ?????????????????????????????????????????????????? | | ?????????????????????????????????????????????????? | | ?????????????????????????????????????????????????? | | ?????????????????????????????????????????????????? | | ?????????????????????????????????????????????????? | | ?????????????????????????????????????????????????? | | ?????????????????????????????????????????????????? | | ?????????????????????????????????????????????????? | | ?????????????????????????????????????????????????? | | ?????????????????????????????????????????????????? | | ???????????? ????????????????????????????????????? | | ???????????? |???????????????????????????????????? | | ???????????# * ????????###??????????????????????? | | ???????????" ???????# ??????????????????????? | | ???????????# ??????# #??????????????????????? | | ??????????# ????# #??????????????????????? | | ?????????? ???#a#??????????????????????? | | ????????? ###@###????????????????????? | | ????????? %aa% #????????????????????? | | ????????? %% %#????????????????????? | | ?????????????# ## =## #????????????????????? | | ???????????????????## #?# #????????????????????? | | ????????????????????###??# #?????????????????#??? | | ????????????????????????## ####????????????? ##?? | | ???????????????????????## ##??????????? ##? | | ???????????????????????# ##?????????# ## | | ??????????????????????## ########## | | ?????????????????????## | | ????????????????????## =* | | ????????????????????# = * | | ????????????????????# ##= | | ????????????????????## #### | | ?????????????????????### #??# | | ???????????????????????## #??# | | ????????????????????????## #??## ## | | ?????????????????????????## ##????# ###?? | | ??????????????????????????# ####??????###?????# | | ??????????????????????????## ##?????????????????? | | ???????????????????????????####??????????????????? | | ?????????????????????????????????????????????????? | | ?????????????????????????????????????????????????? | | ?????????????????????????????????????????????????? | +----------------------------------------------------+ Best States ------------- Heat Dissipation 25 Energy Generation 10 Energy Capacity 250 Matter Stores 300 Matter Capacity 300 Sight Range 16 Terrain Scan Density 10 Evasion (%) 55 Targeting Accuracy 5 Recoil Reduction 2 Offensive Hacking 10 Item Schematics ----------------- None Robot Schematics ------------------ None Fabricated ------------ Nothing Alien Tech Used ----------------- None Achievements -------------- Dynamic Key Challenges ------------ None Game ------ Seed GammaServoInterpreter Manual? 0 Play Time 00:10:30 Cumulative 4.5 hours Start 2024.04.01 @ 17:53:50 End 2024.04.01 @ 18:03:34 Sessions 1 Manual Loads 0 Difficulty Rogue Special Mode None Game No. 12 Rogue 12 Adventurer 0 Explorer 0 Win Type - Total 0 Types 0/0/0/0/0/0/0/0/0 Lore% 1 Gallery% 10 Achievement% 9 Wizard Run 0 Options --------- Layout 0 ASCII 0 Keyboard 0 Movement Mouse Keybinds 0 Fullscreen 1 Font 24/Smallcaps Map View 76x50 Zoom Use 0% Tactical HUD 0 Map Filters NONE Filters NONE Steam 1 RUN: 24105c98-7765-4cc4-8716-332c8e35deef